{"text_format":"3","workbook":"xlsx","n_sheets":4,"sheets":["요약","자산","부채","범주"],"not_rendered":{"defined_names":10},"read":"whole","date_system":"1900"}

{"sheet":"요약","index":0,"n_rows":12,"n_cols":4,"rows_kept":12}
[null,"잔액 시트"]
[null,null,{"$f":"\"FY-\"&YEAR(TODAY())-1","v":"FY-2016"},{"$f":"\"FY-\"&YEAR(TODAY())","v":"FY-2017"}]
[null,"자산 유형","직전 연도","현재 연도"]
[null,"현재 자산",{"$f":"SUMIFS(자산[직전 연도],자산[자산 유형],대시보드[[#This Row],[자산 유형]])+SUMIFS(부채[직전 연도],부채[부채 유형],대시보드[[#This Row],[자산 유형]])","v":600},{"$f":"SUMIFS(자산[현재 연도],자산[자산 유형],대시보드[[#This Row],[자산 유형]])+SUMIFS(부채[현재 연도],부채[부채 유형],대시보드[[#This Row],[자산 유형]])","v":600}]
[null,"고정 자산",{"$f":"SUMIFS(자산[직전 연도],자산[자산 유형],대시보드[[#This Row],[자산 유형]])+SUMIFS(부채[직전 연도],부채[부채 유형],대시보드[[#This Row],[자산 유형]])","v":{"v":-100,"d":"(100)"}},{"$f":"SUMIFS(자산[현재 연도],자산[자산 유형],대시보드[[#This Row],[자산 유형]])+SUMIFS(부채[현재 연도],부채[부채 유형],대시보드[[#This Row],[자산 유형]])","v":{"v":-85,"d":"(85)"}}]
[null,"기타 자산",{"$f":"SUMIFS(자산[직전 연도],자산[자산 유형],대시보드[[#This Row],[자산 유형]])+SUMIFS(부채[직전 연도],부채[부채 유형],대시보드[[#This Row],[자산 유형]])","v":0},{"$f":"SUMIFS(자산[현재 연도],자산[자산 유형],대시보드[[#This Row],[자산 유형]])+SUMIFS(부채[현재 연도],부채[부채 유형],대시보드[[#This Row],[자산 유형]])","v":0}]
[null,"현재 부채",{"$f":"SUMIFS(자산[직전 연도],자산[자산 유형],대시보드[[#This Row],[자산 유형]])+SUMIFS(부채[직전 연도],부채[부채 유형],대시보드[[#This Row],[자산 유형]])","v":500},{"$f":"SUMIFS(자산[현재 연도],자산[자산 유형],대시보드[[#This Row],[자산 유형]])+SUMIFS(부채[현재 연도],부채[부채 유형],대시보드[[#This Row],[자산 유형]])","v":350}]
[null,"장기 부채",{"$f":"SUMIFS(자산[직전 연도],자산[자산 유형],대시보드[[#This Row],[자산 유형]])+SUMIFS(부채[직전 연도],부채[부채 유형],대시보드[[#This Row],[자산 유형]])","v":0},{"$f":"SUMIFS(자산[현재 연도],자산[자산 유형],대시보드[[#This Row],[자산 유형]])+SUMIFS(부채[현재 연도],부채[부채 유형],대시보드[[#This Row],[자산 유형]])","v":0}]
[null,"자본",{"$f":"SUMIFS(자산[직전 연도],자산[자산 유형],대시보드[[#This Row],[자산 유형]])+SUMIFS(부채[직전 연도],부채[부채 유형],대시보드[[#This Row],[자산 유형]])","v":0},{"$f":"SUMIFS(자산[현재 연도],자산[자산 유형],대시보드[[#This Row],[자산 유형]])+SUMIFS(부채[현재 연도],부채[부채 유형],대시보드[[#This Row],[자산 유형]])","v":350}]
[null,"자산 합계",{"$f":"자산[[#Totals],[직전 연도]]","v":500},{"$f":"자산[[#Totals],[현재 연도]]","v":515}]
[null,"부채 합계 및 주주지분",{"$f":"부채[[#Totals],[직전 연도]]","v":500},{"$f":"부채[[#Totals],[현재 연도]]","v":700}]
[null,"잔액",{"$f":"C10-C11","v":0},{"$f":"D10-D11","v":{"v":-185,"d":"(185)"}}]

{"sheet":"자산","index":1,"n_rows":14,"n_cols":5,"rows_kept":14}
[null,"자산"]
[{"$nulls":3},{"$f":"회계_년도","v":"FY-2016"},{"$f":"회계_년도_2","v":"FY-2017"}]
[null,"자산 유형","설명","직전 연도","현재 연도"]
[null,"현재 자산","현금",600,600]
[null,"현재 자산","투자"]
[null,"현재 자산","재고"]
[null,"현재 자산","매출채권"]
[null,"현재 자산","기지급 경비"]
[null,"고정 자산","재산 및 장비"]
[null,"고정 자산","리스개량자산"]
[null,"고정 자산","주식 및 기타 투자"]
[null,"고정 자산","감가상각 충당금 누계액(음의 값)",{"v":-100,"d":"(100)"},{"v":-85,"d":"(85)"}]
[null,"기타 자산","기부금"]
[null,"자산 합계",null,{"$f":"SUBTOTAL(109,자산[직전 연도])","v":500},{"$f":"SUBTOTAL(109,자산[현재 연도])","v":515}]

{"sheet":"부채","index":2,"n_rows":12,"n_cols":5,"rows_kept":12}
[null,"부채"]
[{"$nulls":3},{"$f":"회계_년도","v":"FY-2016"},{"$f":"회계_년도_2","v":"FY-2017"}]
[null,"부채 유형","설명","직전 연도","현재 연도"]
[null,"현재 부채","매입채무",null,350]
[null,"현재 부채","미지급 급료"]
[null,"현재 부채","미지급 보상",500]
[null,"현재 부채","미지급 소득세"]
[null,"현재 부채","선수 수익"]
[null,"장기 부채","미지급 담보 대출"]
[null,"자본","투자금",null,350]
[null,"자본","이익잉여금"]
[null,"부채 합계 및 주주지분",null,{"$f":"SUBTOTAL(109,부채[직전 연도])","v":500},{"$f":"SUBTOTAL(109,부채[현재 연도])","v":700}]

{"sheet":"범주","index":3,"n_rows":9,"n_cols":2,"rows_kept":9}
[null,"범주"]
[]
[null,"범주"]
[null,"현재 자산"]
[null,"고정 자산"]
[null,"기타 자산"]
[null,"현재 부채"]
[null,"장기 부채"]
[null,"자본"]